fUST/lending_fUST_20240617
["ID","MTS","AMOUNT","RATE_DAILY","PERIOD"]
[329727189,1718620253273,-500.0,0.00016438,2]
[329727190,1718620253287,-542.82332334,0.00016438,2]
[329727191,1718620253303,-319.18353007,0.00016438,2]
[329727192,1718620253314,-500.0,0.00016438,2]
[329727193,1718620253337,-500.0,0.00016438,2]
[329727194,1718620253349,-503.3936106,0.00016438,2]
[329727195,1718620253366,-1476.4,0.00016438,2]
[329727196,1718620253377,-500.0,0.00016438,2]
[329727197,1718620253389,-500.0,0.00016438,2]
[329727198,1718620253402,-500.0,0.00016438,2]
[329727199,1718620253414,-504.21818391,0.00016438,2]
[329727200,1718620253424,-500.0,0.00016438,2]
[329727201,1718620253438,-500.0,0.00016438,2]
[329727202,1718620253458,-151.0,0.00016438,2]
[329727203,1718620253477,-183.0996,0.00016438,2]
[329727204,1718620253492,-500.0,0.00016438,2]
[329727205,1718620253507,-575.50326808,0.00016438,2]
[329727206,1718620253532,-546.80790576,0.00016438,2]
[329727207,1718620253546,-500.0,0.00016438,2]
[329727208,1718620253558,-500.0,0.00016438,2]
[329727209,1718620253569,-500.0,0.00016438,2]
[329727210,1718620253583,-500.0,0.00016438,2]
[329727211,1718620253596,-151.0,0.00016438,2]
[329727212,1718620253609,-457.08436714,0.00016438,2]
[329727213,1718620253620,-500.0,0.00016438,2]
[329727214,1718620253637,-827.13,0.00016438,2]
[329727215,1718620253651,-583.92,0.00016438,2]
[329727216,1718620253668,-500.0,0.00016438,2]
[329727217,1718620253686,-500.0,0.00016438,2]
[329727218,1718620253698,-500.0,0.00016438,2]
[329727219,1718620253718,-500.0,0.00016438,2]
[329727220,1718620253773,-500.0,0.00016438,2]
[329727221,1718620253787,-500.0,0.00016438,2]
[329727222,1718620253805,-507.52550638,0.00016438,2]
[329727223,1718620253834,-500.0,0.00016438,2]
[329727224,1718620253852,-500.0,0.00016438,2]
[329727225,1718620253887,-506.90294738,0.00016438,2]
[329727226,1718620253903,-500.0,0.00016438,2]
[329727227,1718620253914,-500.0,0.00016438,2]
[329727228,1718620253924,-151.0,0.00016438,2]
[329727229,1718620253943,-151.0,0.00016438,2]
[329727230,1718620253968,-151.0,0.00016438,2]
[329727231,1718620253981,-500.0,0.00016438,2]
[329727232,1718620253996,-508.44242997,0.00016438,2]
[329727233,1718620254027,-500.0,0.00016438,2]
[329727234,1718620254049,-500.0,0.00016438,2]
[329727235,1718620254075,-2144.17,0.00016438,2]
[329727236,1718620254094,-500.0,0.00016438,2]
[329727237,1718620254107,-532.1395488,0.00016438,2]
[329727238,1718620254135,-501.82755419,0.00016438,2]
[329727239,1718620254156,-500.0,0.00016438,2]
[329727240,1718620254196,-503.56973128,0.00016438,2]
[329727241,1718620254216,-500.0,0.00016438,2]
[329727242,1718620254227,-500.0,0.00016438,2]
[329727243,1718620254239,-500.0,0.00016438,2]
[329727244,1718620254252,-500.0,0.00016438,2]
[329727245,1718620254264,-507.01,0.00016438,2]
[329727246,1718620254284,-500.0,0.00016438,2]
[329727247,1718620254311,-506.42356561,0.00016438,2]
[329727248,1718620254333,-500.0,0.00016438,2]
[329727249,1718620254349,-505.33783428,0.00016438,2]
[329727250,1718620254364,-500.0,0.00016438,2]
[329727251,1718620254382,-500.0,0.00016438,2]
[329727252,1718620254405,-151.0,0.00016438,2]
[329727253,1718620254422,-500.0,0.00016438,2]
[329727254,1718620254456,-151.0,0.00016438,2]
[329727255,1718620254472,-500.0,0.00016438,2]
[329727256,1718620254486,-500.0,0.00016438,2]
[329727257,1718620254500,-916.09,0.00016438,2]
[329727258,1718620254512,-500.0,0.00016438,2]
[329727259,1718620254527,-500.0,0.00016438,2]
[329727260,1718620254546,-320.954775,0.00016438,2]
[329727261,1718620254560,-508.49979026,0.00016438,2]
[329727262,1718620254578,-320.954775,0.00016438,2]
[329727263,1718620254597,-500.0,0.00016438,2]
[329727264,1718620254614,-320.954775,0.00016438,2]
[329727265,1718620254630,-576.34,0.00016438,2]
[329727266,1718620254643,-501.69699211,0.00016438,2]
[329727267,1718620254654,-320.954775,0.00016438,2]
[329727268,1718620254688,-292.432225,0.00016438,2]
[329727269,1718620254739,-320.954775,0.00016438,2]
[329727270,1718620254768,-500.0,0.00016438,2]
[329727271,1718620254785,-500.0,0.00016438,2]
[329727272,1718620254824,-320.954775,0.00016438,2]
[329727273,1718620254900,-500.0,0.00016438,2]
[329727274,1718620254985,-504.96049518,0.00016438,2]
[329727275,1718620255012,-500.0,0.00016438,2]
[329727276,1718620255057,-503.68363174,0.00016438,2]
[329727277,1718620255073,-503.20765984,0.00016438,2]
[329727278,1718620255088,-500.0,0.00016438,2]
[329727279,1718620255104,-500.0,0.00016438,2]
[329727280,1718620255118,-500.0,0.00016438,2]
[329727281,1718620255130,-500.0,0.00016438,2]
[329727282,1718620255145,-500.0,0.00016438,2]
[329727283,1718620255160,-500.0,0.00016438,2]
[329727284,1718620255183,-500.0,0.00016438,2]
[329727285,1718620255194,-500.0,0.00016438,2]
[329727286,1718620255205,-1450.83,0.00016438,2]
[329727287,1718620255219,-511.697693,0.00016438,2]
[329727288,1718620255247,-500.0,0.00016438,2]
[329727289,1718620255265,-534.80496508,0.00016438,2]
[329727290,1718620255288,-500.0,0.00016438,2]
[329727291,1718620255306,-500.0,0.00016438,2]
[329727292,1718620255332,-500.0,0.00016438,2]
[329727293,1718620255368,-500.0,0.00016438,2]
[329727294,1718620255509,-500.0,0.00016438,2]
[329727295,1718620255545,-500.0,0.00016438,2]
[329727296,1718620255575,-300.0,0.00016438,2]
[329727297,1718620255588,-500.0,0.00016438,2]
[329727298,1718620255624,-530.7772876,0.00016438,2]
[329727299,1718620255685,-1760.94,0.00016438,2]
[329727300,1718620255707,-500.0,0.00016438,2]
[329727301,1718620255720,-607.10341095,0.00016438,2]
[329727302,1718620255739,-518.37076744,0.00016438,2]
[329727303,1718620255756,-500.0,0.00016438,2]
[329727304,1718620255775,-500.0,0.00016438,2]
[329727305,1718620255803,-500.0,0.00016438,2]
[329727306,1718620255817,-500.46600613,0.00016438,2]
[329727307,1718620255848,-446.14728373,0.00016438,2]
[329727308,1718620256001,-53.85271627,0.00016438,2]
[329727309,1718620256017,-500.0,0.00016438,2]
[329727310,1718620256040,-500.0,0.00016438,2]
[329727311,1718620256053,-500.0,0.00016438,2]
[329727312,1718620256067,-503.586612,0.00016438,2]
[329727313,1718620256085,-500.0,0.00016438,2]
[329727314,1718620256100,-500.0,0.00016438,2]
[329727315,1718620256120,-500.0,0.00016438,2]
[329727316,1718620256133,-500.0,0.00016438,2]
[329727317,1718620256149,-500.0,0.00016438,2]
[329727318,1718620256164,-1581.07,0.00016438,2]
[329727319,1718620256177,-500.88011306,0.00016438,2]
[329727320,1718620256193,-500.0,0.00016438,2]
[329727321,1718620256213,-500.0,0.00016438,2]
[329727322,1718620256244,-500.0,0.00016438,2]
[329727323,1718620256272,-500.0,0.00016438,2]
[329727324,1718620256304,-499.20298535,0.00016438,2]
[329727325,1718620256335,-265.21747749,0.00016438,2]
[329727326,1718620256383,-500.0,0.00016438,2]
[329727327,1718620256401,-500.0,0.00016438,2]
[329727328,1718620256414,-500.0,0.00016438,2]
[329727329,1718620256432,-501.55957385,0.00016438,2]
[329727330,1718620256463,-155.01085076,0.00016438,2]
[329727331,1718620256482,-500.0,0.00016438,2]
[329727332,1718620256508,-501.40518132,0.00016438,2]
[329727333,1718620256537,-500.85442677,0.00016438,2]
[329727334,1718620256562,-500.0,0.00016438,2]
[329727335,1718620256579,-500.0,0.00016438,2]
[329727336,1718620256606,-500.0,0.00016438,2]
[329727337,1718620256618,-500.0,0.00016438,2]
[329727338,1718620256648,-511.38329718,0.00016438,2]
[329727339,1718620256675,-500.0,0.00016438,2]
[329727340,1718620256704,-500.0,0.00016438,2]
[329727341,1718620256721,-500.0,0.00016438,2]
[329727342,1718620256737,-500.0,0.00016438,2]
[329727343,1718620256751,-501.90984678,0.00016438,2]
[329727344,1718620256766,-500.0,0.00016438,2]
[329727345,1718620256783,-500.0,0.00016438,2]
[329727346,1718620256796,-151.0,0.00016438,2]
[329727347,1718620256821,-151.0,0.00016438,2]
[329727348,1718620256848,-500.0,0.00016438,2]
[329727349,1718620256868,-500.0,0.00016438,2]
[329727350,1718620256893,-500.0,0.00016438,2]
[329727351,1718620256906,-151.0,0.00016438,2]
[329727352,1718620256919,-500.0,0.00016438,2]
[329727353,1718620256936,-500.0,0.00016438,2]
[329727354,1718620256958,-509.77669262,0.00016438,2]
[329727355,1718620256984,-500.0,0.00016438,2]
[329727356,1718620256997,-503.03438151,0.00016438,2]
[329727357,1718620257008,-500.0,0.00016438,2]
[329727358,1718620257019,-500.0,0.00016438,2]
[329727359,1718620257029,-500.0,0.00016438,2]
[329727360,1718620257043,-627.34,0.00016438,2]
[329727361,1718620257058,-500.0,0.00016438,2]
[329727362,1718620257070,-500.0,0.00016438,2]
[329727363,1718620257091,-500.0,0.00016438,2]
[329727364,1718620257102,-614.27044058,0.00016438,2]
[329727365,1718620257113,-500.0,0.00016438,2]
[329727366,1718620257124,-500.0,0.00016438,2]
[329727367,1718620257138,-500.0,0.00016438,2]
[329727368,1718620257156,-2056.74,0.00016438,2]
[329727369,1718620257167,-2418.41,0.00016438,2]
[329727370,1718620257189,-500.0,0.00016438,2]
[329727371,1718620257203,-500.0,0.00016438,2]
[329727372,1718620257214,-497.94636225,0.00016438,2]
[329727373,1718620257226,-500.0,0.00016438,2]
[329727374,1718620257239,-500.0,0.00016438,2]
[329727375,1718620257253,-500.0,0.00016438,2]
[329727376,1718620257271,-503.21465229,0.00016438,2]
[329727377,1718620257305,-500.0,0.00016438,2]
[329727378,1718620257336,-500.0,0.00016438,2]
[329727379,1718620257349,-500.0,0.00016438,2]
[329727380,1718620257379,-500.0,0.00016438,2]
[329727381,1718620257394,-306.39778142,0.00016438,2]
[329727382,1718620257411,-503.28442382,0.00016438,2]
[329727383,1718620257431,-500.0,0.00016438,2]
[329727384,1718620257448,-500.0,0.00016438,2]
[329727385,1718620257482,-199.13939028,0.00016438,2]
[329727386,1718620257505,-501.70643151,0.00016438,2]
[329727387,1718620257517,-500.0,0.00016438,2]
[329727388,1718620257541,-500.0,0.00016438,2]
[329727389,1718620257557,-155.39120753,0.00016438,2]
[329727390,1718620257576,-500.0,0.00016438,2]
[329727391,1718620257590,-500.0,0.00016438,2]
[329727392,1718620257608,-500.0,0.00016438,2]
[329727393,1718620257627,-540.0024919,0.00016438,2]
[329727394,1718620257642,-151.0,0.00016438,2]
[329727395,1718620257655,-151.0,0.00016438,2]
[329727396,1718620257674,-151.0,0.00016438,2]
[329727397,1718620257688,-151.0,0.00016438,2]
[329727398,1718620257701,-531.2,0.00016697,2]
[329727399,1718620257716,-500.0,0.00016711,2]
[329727400,1718620257731,-500.0,0.00016711,2]
[329727401,1718620257745,-500.0,0.00016711,2]
[329727402,1718620257761,-151.0,0.00016711,2]
[329727403,1718620257775,-500.0,0.00016711,2]
[329727404,1718620257791,-151.0,0.00016711,2]
[329727405,1718620257805,-500.0,0.00016712,2]
[329727406,1718620257830,-500.0,0.00016712,2]
[329727407,1718620257844,-500.0,0.00016712,2]
[329727408,1718620257860,-500.0,0.00016712,2]
[329727409,1718620257877,-500.0,0.00016712,2]
[329727410,1718620257897,-500.0,0.00016712,2]
[329727411,1718620257925,-504.66901451,0.00016712,2]
[329727412,1718620257940,-500.0,0.00016712,2]
[329727413,1718620257953,-186.94271137,0.00016712,2]
[329727414,1718620257972,-500.0,0.00016712,2]
[329727415,1718620257989,-500.0,0.00016712,2]
[329727416,1718620258004,-500.0,0.00016712,2]
[329727417,1718620258020,-596.47646355,0.00016712,2]
[329727418,1718620258035,-463.34199759,0.00016712,2]
[329727419,1718620258052,-500.0,0.00016712,2]
[329727420,1718620258068,-500.0,0.00016712,2]
[329727421,1718620258086,-500.0,0.00016712,2]
[329727422,1718620258109,-513.79696058,0.00016712,2]
[329727423,1718620258145,-500.0,0.00016712,2]
[329727424,1718620258172,-500.0,0.00016712,2]
[329727425,1718620258194,-500.0,0.00016712,2]
[329727426,1718620258216,-500.0,0.00016712,2]
[329727427,1718620258237,-502.6789397,0.00016712,2]
[329727428,1718620258251,-502.38592744,0.00016712,2]
[329727429,1718620258273,-500.0,0.00016712,2]
[329727430,1718620258289,-500.0,0.00016712,2]
[329727431,1718620258308,-500.0,0.00016712,2]
[329727432,1718620258333,-502.89719724,0.00016712,2]
[329727433,1718620258353,-643.77159677,0.00016712,2]
[329727434,1718620258366,-500.0,0.00016712,2]
[329727435,1718620258381,-530.71418767,0.00016712,2]
[329727436,1718620258405,-500.0,0.00016712,2]
[329727437,1718620258421,-250.0,0.00016712,2]
[329727438,1718620258434,-500.66467378,0.00016712,2]
[329727439,1718620258448,-500.0,0.00016712,2]
[329727440,1718620258460,-500.0,0.00016712,2]
[329727441,1718620258472,-500.0,0.00016712,2]
[329727442,1718620258484,-500.0,0.00016712,2]
[329727443,1718620258507,-500.0,0.00016712,2]
[329727444,1718620258524,-500.0,0.00016712,2]
[329727445,1718620258540,-500.0,0.00016712,2]
[329727446,1718620258555,-168.88888071,0.00016712,2]
[329727447,1718620258596,-500.0,0.00016712,2]
[329727448,1718620258613,-509.99183791,0.00016712,2]
[329727449,1718620258640,-500.0,0.00016712,2]
[329727450,1718620258656,-440.14971195,0.00016712,2]
[329727451,1718620258671,-500.0,0.00016712,2]
[329727452,1718620258711,-500.0,0.00016712,2]
[329727453,1718620258727,-500.0,0.00016712,2]
[329727454,1718620258744,-506.15383739,0.00016712,2]
[329727455,1718620258772,-263.84516495,0.00016712,2]
[329727456,1718620258788,-500.0,0.00016712,2]
[329727457,1718620258810,-438.18485266,0.00016712,2]
[329727458,1718620258826,-167.766167,0.00016712,2]
[329727459,1718620258853,-501.89141202,0.00016712,2]
[329727460,1718620258873,-500.0,0.00016712,2]
[329727461,1718620258887,-475.93274446,0.00016712,2]
[329727462,1718620258961,-500.0,0.00016712,2]
[329727463,1718620258983,-500.0,0.00016712,2]
[329727464,1718620259008,-500.0,0.00016712,2]
[329727465,1718620259037,-630.55948892,0.00016712,2]
[329727466,1718620259064,-500.0,0.00016712,2]
[329727467,1718620259089,-173.72,0.00016712,2]
[329727468,1718620259104,-500.0,0.00016712,2]
[329727469,1718620259117,-500.0,0.00016712,2]
[329727470,1718620259132,-500.0,0.00016712,2]
[329727471,1718620259148,-500.0,0.00016712,2]
[329727472,1718620259187,-500.0,0.00016712,2]
[329727473,1718620259200,-500.0,0.00016712,2]
[329727474,1718620259220,-500.0,0.00016712,2]
[329727475,1718620259233,-500.0,0.00016712,2]
[329727476,1718620259245,-501.25012054,0.00016712,2]
[329727477,1718620259264,-500.0,0.00016712,2]
[329727478,1718620259277,-648.6953387,0.00016712,2]
[329727479,1718620259292,-500.0,0.00016712,2]
[329727480,1718620259309,-500.0,0.00016712,2]
[329727481,1718620259338,-500.0,0.00016712,2]
[329727482,1718620259352,-500.0,0.00016712,2]
[329727483,1718620259366,-500.0,0.00016712,2]
[329727484,1718620259390,-151.0,0.00016712,2]
[329727485,1718620259402,-500.0,0.00016712,2]
[329727486,1718620259432,-163.469036,0.00016712,2]
[329727487,1718620259455,-618.30452941,0.00016712,2]
[329727488,1718620259473,-527.39577157,0.00016712,2]
[329727489,1718620259488,-500.0,0.00016712,2]
[329727490,1718620259503,-500.0,0.00016712,2]
[329727491,1718620259537,-500.0,0.00016712,2]
[329727492,1718620259551,-547.95381113,0.00016712,2]
[329727493,1718620259567,-500.0,0.00016712,2]
[329727494,1718620259586,-500.0,0.00016712,2]
[329727495,1718620259616,-500.0,0.00016712,2]
[329727496,1718620259629,-500.0,0.00016712,2]
[329727497,1718620259643,-500.0,0.00016712,2]
[329727498,1718620259658,-512.19234643,0.00016712,2]
[329727499,1718620259696,-500.0,0.00016712,2]
[329727500,1718620259712,-500.0,0.00016712,2]
[329727501,1718620259736,-500.0,0.00016712,2]
[329727502,1718620259783,-500.0,0.00016712,2]
[329727503,1718620259799,-500.0,0.00016712,2]
[329727504,1718620259813,-500.0,0.00016712,2]
[329727505,1718620259826,-500.0,0.00016712,2]
[329727506,1718620259985,-500.0,0.00016712,2]
[329727507,1718620260012,-500.0,0.00016712,2]
[329727508,1718620260030,-500.0,0.00016712,2]
[329727509,1718620260044,-364.4443289,0.00016712,2]
[329727510,1718620260057,-500.0,0.00016712,2]
[329727511,1718620260077,-500.0,0.00016712,2]
[329727512,1718620260109,-154.92665267,0.00016712,2]
[329727513,1718620260120,-507.55625995,0.00016712,2]
[329727514,1718620260137,-500.0,0.00016712,2]
[329727515,1718620260149,-500.0,0.00016712,2]
[329727516,1718620260167,-500.0,0.00016712,2]
[329727517,1718620260200,-506.8752513,0.00016712,2]
[329727518,1718620260262,-500.0,0.00016712,2]
[329727519,1718620260297,-500.0,0.00016712,2]
[329727520,1718620260334,-500.0,0.00016712,2]
[329727521,1718620260375,-500.0,0.00016712,2]
[329727522,1718620260400,-500.0,0.00016712,2]
[329727523,1718620260411,-500.0,0.00016712,2]
[329727524,1718620260422,-500.0,0.00016712,2]
[329727525,1718620260438,-500.0,0.00016712,2]
[329727526,1718620260481,-500.0,0.00016712,2]
[329727527,1718620260492,-500.0,0.00016712,2]
[329727528,1718620260505,-500.0,0.00016712,2]
[329727529,1718620260568,-500.0,0.00016712,2]
[329727530,1718620260582,-510.4781607,0.00016712,2]
[329727531,1718620260594,-500.0,0.00016712,2]
[329727532,1718620260608,-500.0,0.00016712,2]
[329727533,1718620260625,-608.02752242,0.00016712,2]
[329727534,1718620260647,-500.0,0.00016712,2]
[329727535,1718620260659,-615.62762372,0.00016712,2]
[329727536,1718620260700,-500.0,0.00016712,2]
[329727537,1718620260713,-500.0,0.00016712,2]
[329727538,1718620260752,-500.0,0.00016712,2]
[329727539,1718620260775,-500.0,0.00016712,2]
[329727540,1718620260786,-500.0,0.00016712,2]
[329727541,1718620260814,-500.0,0.00016712,2]
[329727542,1718620260843,-500.0,0.00016712,2]
[329727543,1718620260856,-500.0,0.00016712,2]
[329727544,1718620260870,-282.54254845,0.00016712,2]
[329727545,1718620260901,-503.77443766,0.00016712,2]
[329727546,1718620260919,-511.18,0.00016712,2]
[329727547,1718620260942,-500.0,0.00016712,2]
[329727548,1718620260957,-500.0,0.00016712,2]
[329727549,1718620260973,-500.0,0.00016712,2]
[329727550,1718620260985,-516.52,0.00016712,2]
[329727551,1718620261003,-151.0,0.00016712,2]
[329727552,1718620261014,-151.0,0.00016712,2]
[329727553,1718620261025,-151.0,0.00016712,2]
[329727554,1718620261036,-500.0,0.00016712,2]
[329727555,1718620261050,-500.0,0.00016712,2]
[329727556,1718620261063,-1476.4,0.00016712,2]
[329727557,1718620261082,-500.0,0.00016712,2]
[329727558,1718620261099,-500.0,0.00016712,2]
[329727559,1718620261110,-500.0,0.00016712,2]
[329727560,1718620261124,-500.0,0.00016712,2]
[329727561,1718620261136,-500.0,0.00016712,2]
[329727562,1718620261173,-151.0,0.00016712,2]
[329727563,1718620261194,-151.0,0.00016712,2]
[329727564,1718620261207,-151.0,0.00016712,2]
[329727565,1718620261220,-211.401612,0.00016712,2]
[329727566,1718620261231,-500.0,0.00016712,2]
[329727567,1718620261255,-500.0,0.00016712,2]
[329727568,1718620261268,-500.0,0.00016712,2]
[329727569,1718620261282,-151.0,0.00016712,2]
[329727570,1718620261317,-500.0,0.00016712,2]
[329727571,1718620261332,-2144.17,0.00016712,2]
[329727572,1718620261345,-500.0,0.00016712,2]
[329727573,1718620261370,-418.643906,0.00016712,2]
[329727574,1718620261387,-500.0,0.00016712,2]
[329727575,1718620261407,-500.0,0.00016712,2]
[329727576,1718620261441,-507.01,0.00016712,2]
[329727577,1718620261452,-500.0,0.00016712,2]
[329727578,1718620261464,-500.0,0.00016712,2]
[329727579,1718620261480,-500.0,0.00016712,2]
[329727580,1718620261498,-500.0,0.00016712,2]
[329727581,1718620261510,-916.09,0.00016712,2]
[329727582,1718620261538,-500.0,0.00016712,2]
[329727583,1718620261559,-320.954775,0.00016712,2]
[329727584,1718620261584,-293.5,0.00016712,2]
[329727585,1718620261606,-320.954775,0.00016712,2]
[329727586,1718620261640,-576.34,0.00016712,2]
[329727587,1718620261662,-320.954775,0.00016712,2]
[329727588,1718620261681,-320.954775,0.00016712,2]
[329727589,1718620261693,-514.04,0.00016712,2]
[329727590,1718620261704,-500.0,0.00016712,2]
[329727591,1718620261716,-1450.83,0.00016712,2]
[329727592,1718620261727,-527.90237859,0.00016712,2]
[329727593,1718620261748,-500.0,0.00016712,2]
[329727594,1718620261763,-500.0,0.00016712,2]
[329727595,1718620261779,-500.0,0.00016712,2]
[329727596,1718620261797,-500.0,0.00016712,2]
[329727597,1718620261810,-500.0,0.00016712,2]
[329727598,1718620261831,-626.2902236,0.00016712,2]
[329727599,1718620261842,-1581.07,0.00016712,2]
[329727600,1718620261853,-500.0,0.00016712,2]
[329727601,1718620261865,-500.0,0.00016712,2]
[329727602,1718620261876,-500.0,0.00016712,2]
[329727603,1718620261912,-505.51698082,0.00016712,2]
[329727604,1718620261924,-500.0,0.00016712,2]
[329727605,1718620261936,-506.6419808,0.00016712,2]
[329727606,1718620261947,-151.0,0.00016712,2]
[329727607,1718620261968,-151.0,0.00016712,2]
[329727608,1718620261986,-151.0,0.00016712,2]
[329727609,1718620262021,-500.0,0.00016712,2]
[329727610,1718620262066,-502.68613789,0.00016712,2]
[329727611,1718620262089,-419.98850811,0.00016712,2]
[329727612,1718620262101,-500.0,0.00016712,2]
[329727613,1718620262131,-2056.74,0.00016712,2]
[329727614,1718620262169,-2418.41,0.00016712,2]
[329727615,1718620262190,-505.23907069,0.00016712,2]
[329727616,1718620262224,-500.0,0.00016712,2]
[329727617,1718620262240,-501.83374599,0.00016712,2]
[329727618,1718620262251,-500.0,0.00016712,2]
[329727619,1718620262284,-500.0,0.00016712,2]
[329727620,1718620262322,-500.0,0.00016712,2]
[329727621,1718620262344,-517.29434699,0.00016712,2]
[329727622,1718620262355,-500.0,0.00016712,2]
[329727623,1718620262368,-531.2,0.00016922,2]
[329727624,1718620262389,-500.0,0.00016985,2]
[329727625,1718620262399,-500.0,0.00016985,2]
[329727626,1718620262433,-500.0,0.00016985,2]
[329727627,1718620262476,-500.0,0.00016985,2]
[329727628,1718620262518,-827.13,0.00016985,2]
[329727629,1718620262533,-500.0,0.00016985,2]
[329727630,1718620262551,-1760.94,0.00016985,2]
[329727631,1718620262594,-500.0,0.00016986,2]
[329727632,1718620262606,-500.0,0.00016986,2]
[329727633,1718620262619,-500.0,0.00016986,2]
[329727634,1718620262638,-500.0,0.00016986,2]
[329727635,1718620262665,-199.56,0.00016986,2]
[329727636,1718620262677,-516.52,0.00016986,2]
[329727637,1718620262689,-500.0,0.00016986,2]
[329727638,1718620262700,-1476.4,0.00016986,2]
[329727639,1718620262711,-500.0,0.00016986,2]
[329727640,1718620262725,-151.0,0.00016986,2]
[329727641,1718620262736,-2144.17,0.00016986,2]
[329727642,1718620262751,-441.4,0.00016986,2]
[329727643,1718620262763,-507.01,0.00016986,2]
[329727644,1718620262780,-500.0,0.00016986,2]
[329727645,1718620262791,-500.0,0.00016986,2]
[329727646,1718620262802,-500.0,0.00016986,2]
[329727647,1718620262814,-916.09,0.00016986,2]
[329727648,1718620262824,-576.34,0.00016986,2]
[329727649,1718620262840,-320.954775,0.00016986,2]
[329727650,1718620262860,-320.954775,0.00016986,2]
[329727651,1718620262877,-1450.83,0.00016986,2]
[329727652,1718620262889,-500.0,0.00016986,2]
[329727653,1718620262909,-1581.07,0.00016986,2]
[329727654,1718620262922,-500.0,0.00016986,2]
[329727655,1718620262934,-2056.74,0.00016986,2]
[329727656,1718620262946,-2418.41,0.00016986,2]
[329727657,1718620262975,-500.0,0.00016999,2]
[329727658,1718620262991,-500.0,0.00016999,2]
[329727659,1718620263003,-500.0,0.00016999,2]
[329727660,1718620263015,-500.0,0.00016999,2]
[329727661,1718620263026,-151.0,0.00017068,2]
[329727662,1718620263039,-500.0,0.0001707,2]
[329727663,1718620263050,-500.0,0.0001707,2]
[329727664,1718620263061,-503.40613617,0.0001707,2]
[329727665,1718620263073,-500.0000001,0.0001707,2]
[329727666,1718620263096,-20000.0,0.00017071,2]
[329727667,1718620263113,-151.0,0.00017071,2]
[329727668,1718620263149,-320.954775,0.00017071,2]
[329727669,1718620263172,-320.954775,0.00017071,2]
[329727670,1718620263196,-151.0,0.00017071,2]
[329727671,1718620263249,-531.2,0.00017148,2]
[329727672,1718620263283,-500.0,0.00017259,2]
[329727673,1718620263296,-500.0,0.00017259,2]
[329727674,1718620263319,-500.0,0.0001726,2]
[329727675,1718620263340,-500.0,0.0001726,2]
[329727676,1718620263354,-516.52,0.0001726,2]
[329727677,1718620263382,-500.0,0.0001726,2]
[329727678,1718620263405,-1476.4,0.0001726,2]
[329727679,1718620263454,-500.0,0.0001726,2]
[329727680,1718620263470,-2144.17,0.0001726,2]
[329727681,1718620263482,-507.01,0.0001726,2]
[329727682,1718620263501,-500.0,0.0001726,2]
[329727683,1718620263514,-500.0,0.0001726,2]
[329727684,1718620263526,-500.0,0.0001726,2]
[329727685,1718620263537,-916.09,0.0001726,2]
[329727686,1718620263548,-576.34,0.0001726,2]
[329727687,1718620263567,-218.38,0.0001726,2]
[329727688,1718620263580,-1450.83,0.0001726,2]